fUSD/lending_fUSD_20240328
["ID","MTS","AMOUNT","RATE_DAILY","PERIOD"]
[320847284,1711624256766,-6540.62,0.00053424,120]
[320847285,1711624256776,-500.0,0.00053424,120]
[320847286,1711624256785,-500.0,0.00053424,120]
[320847287,1711624256794,-500.0,0.00053424,120]
[320847288,1711624256804,-987.58,0.00053424,120]
[320847289,1711624256814,-1317.09,0.00053424,120]
[320847290,1711624256823,-1140.93,0.00053424,120]
[320847291,1711624256833,-500.0,0.00053424,120]
[320847292,1711624256844,-1292.63,0.00053424,120]
[320847293,1711624256854,-500.0,0.00053424,120]
[320847294,1711624256863,-500.0,0.00053424,120]
[320847295,1711624256872,-1659.05,0.00053424,120]
[320847296,1711624256882,-1581.68,0.00053424,120]
[320847297,1711624256891,-3125.0,0.00053424,120]
[320847298,1711624256901,-1700.94,0.00053424,120]
[320847299,1711624256910,-1464.75,0.00053424,120]
[320847300,1711624256919,-1825.65,0.00053424,120]
[320847301,1711624256929,-1636.14,0.00053424,120]
[320847302,1711624256938,-1773.49,0.00053424,120]
[320847303,1711624256948,-500.0,0.00053424,120]
[320847304,1711624256957,-649.36531689,0.00053424,120]
[320847305,1711624256967,-839.91,0.00053424,120]
[320847306,1711624256976,-500.0,0.00053424,120]
[320847307,1711624256985,-2063.31,0.00053424,120]
[320847308,1711624256994,-1162.63,0.00053424,120]
[320847309,1711624257004,-1534.22,0.00053424,120]
[320847310,1711624257013,-517.16,0.00053424,120]
[320847311,1711624257023,-500.0,0.00053424,120]
[320847312,1711624257033,-500.0,0.00053424,120]
[320847313,1711624257043,-941.55,0.00053424,120]
[320847314,1711624257053,-1839.83,0.00053424,120]
[320847315,1711624257062,-1069.77,0.00053424,120]
[320847316,1711624257072,-1185.52,0.00053424,120]
[320847317,1711624257082,-500.0,0.00053424,120]
[320847318,1711624257091,-718.3,0.00053424,120]
[320847319,1711624257103,-500.0,0.00053424,2]
[320847320,1711624257113,-2506.05,0.00053424,120]
[320847321,1711624257124,-1165.18,0.00053424,120]
[320847322,1711624257133,-1346.0,0.00053424,120]
[320847323,1711624257143,-1889.57,0.00053424,120]
[320847324,1711624257155,-662.14,0.00053424,120]
[320847325,1711624257164,-1493.69,0.00053424,120]
[320847326,1711624257175,-2441.52,0.00053424,120]
[320847327,1711624257185,-500.0,0.00053424,120]
[320847328,1711624257194,-150.0,0.00053425,60]
[320847329,1711624257204,-415.83,0.00053425,30]
[320847330,1711624257214,-647.87,0.00053425,30]
[320847331,1711624257223,-150.0,0.00053425,60]
[320847332,1711624257232,-415.83,0.00053425,30]
[320847333,1711624257241,-150.0,0.00053425,60]
[320847334,1711624257251,-414.87,0.00053425,30]
[320847335,1711624257262,-1404.46938453,0.0005348,2]
[320847336,1711624257271,-1549.03,0.00053481,120]
[320847337,1711624257281,-2492.01,0.00053481,120]
[320847338,1711624257290,-678.16,0.00053481,120]
[320847339,1711624257300,-166.37504122,0.00053482,120]
[320847340,1711624257309,-819.75,0.00053499,120]
[320847341,1711624257319,-940.83,0.00053499,120]
[320847342,1711624257328,-2478.47,0.00053499,120]
[320847343,1711624257337,-100000.0,0.000535,43]
[320847344,1711624257348,-266.639167,0.000535,120]
[320847345,1711624257358,-266.639162,0.000535,120]
[320847346,1711624257367,-8423.89328622,0.000535,2]
[320847347,1711624257378,-3850.08015096,0.00053501,30]
[320847348,1711624257387,-739.23589299,0.00053501,2]
[320847349,1711624257396,-18546.84026467,0.00053501,2]
[320847350,1711624257406,-192.48966374,0.00053501,11]
[320847351,1711624257415,-1965.70977992,0.00053501,120]
[320847352,1711624257424,-392.21418847,0.00053501,2]
[320847353,1711624257433,-2904.25338854,0.00053501,2]
[320847354,1711624257443,-500.0,0.00053502,120]
[320847355,1711624257453,-819.75,0.00053502,120]
[320847356,1711624257463,-1549.03,0.00053502,120]
[320847357,1711624257472,-2492.01,0.00053502,120]
[320847358,1711624257482,-2478.47,0.00053502,120]
[320847359,1711624257492,-678.16,0.00053502,120]
[320847360,1711624257501,-9421.3482131,0.00053503,2]
[320847361,1711624257511,-8099.1581209,0.00053503,2]
[320847362,1711624257520,-98446.6014005,0.00053503,2]
[320847363,1711624257530,-84630.6253813,0.00053503,2]
[320847364,1711624257544,-946.9733714,0.00053503,2]
[320847365,1711624257554,-814.075321,0.00053503,2]
[320847366,1711624257563,-6768.9800268,0.00053503,2]
[320847367,1711624257573,-5819.0227465,0.00053503,2]
[320847368,1711624257582,-512.1559657,0.00053503,2]
[320847369,1711624257593,-440.2801016,0.00053503,2]
[320847370,1711624257602,-150.5,0.0005351,15]
[320847371,1711624257612,-150.5,0.0005352,15]
[320847372,1711624257622,-150.5,0.0005353,15]
[320847373,1711624257631,-200.0,0.0005353,90]
[320847374,1711624257642,-200.0,0.0005353,90]
[320847375,1711624257651,-8552.26709151,0.00053537,2]
[320847376,1711624257981,-2841.53008258,0.00053537,2]
[320847377,1711624257993,-464.19606063,0.00053537,2]
[320847378,1711624258014,-5330.02628085,0.00053537,2]
[320847379,1711624258030,-411.7493109,0.00053537,2]
[320847380,1711624258609,-7788.54431486,0.00053096,60]
[320847381,1711624258619,-1772.475,0.00053149,4]
[320847382,1711624258629,-601.38,0.0005315,120]
[320847383,1711624258639,-601.38,0.00053424,120]
[320847384,1711624258648,-41367.48417707,0.00053537,2]
[320847385,1711624258658,-212.42779926,0.00053539,120]
[320847386,1711624258669,-819.75,0.00053539,120]
[320847387,1711624258678,-819.75,0.00053539,120]
[320847388,1711624258688,-819.75,0.00053539,120]
[320847389,1711624258698,-819.75,0.00053539,120]
[320847390,1711624258707,-819.75,0.00053539,120]
[320847391,1711624258717,-819.75,0.00053539,120]
[320847392,1711624258727,-819.75,0.00053539,120]
[320847393,1711624258737,-1549.03,0.00053539,120]
[320847394,1711624258746,-1549.03,0.00053539,120]
[320847395,1711624258756,-1549.03,0.00053539,120]
[320847396,1711624258766,-1549.03,0.00053539,120]
[320847397,1711624258776,-1549.03,0.00053539,120]
[320847398,1711624258787,-1549.03,0.00053539,120]
[320847399,1711624258797,-1549.03,0.00053539,120]
[320847400,1711624258808,-2492.01,0.00053539,120]
[320847401,1711624258818,-2492.01,0.00053539,120]
[320847402,1711624258828,-2478.47,0.00053539,120]
[320847403,1711624258841,-2492.01,0.00053539,120]
[320847404,1711624258852,-2478.47,0.00053539,120]
[320847405,1711624258861,-2478.47,0.00053539,120]
[320847406,1711624258871,-2492.01,0.00053539,120]
[320847407,1711624258881,-2478.47,0.00053539,120]
[320847408,1711624258890,-2492.01,0.00053539,120]
[320847409,1711624258900,-2478.47,0.00053539,120]
[320847410,1711624258910,-2492.01,0.00053539,120]
[320847411,1711624258920,-2478.47,0.00053539,120]
[320847412,1711624258930,-2492.01,0.00053539,120]
[320847413,1711624258939,-2478.47,0.00053539,120]
[320847414,1711624258949,-678.16,0.00053539,120]
[320847415,1711624258958,-678.16,0.00053539,120]
[320847416,1711624258969,-678.16,0.00053539,120]
[320847417,1711624258979,-678.16,0.00053539,120]
[320847418,1711624258989,-678.16,0.00053539,120]
[320847419,1711624258998,-678.16,0.00053539,120]
[320847420,1711624259008,-678.16,0.00053539,120]
[320847421,1711624259018,-279354.77862484,0.0005354,120]
[320847422,1711624259030,-4936.0,0.0005354,120]
[320847423,1711624259063,-8580.4332,0.0005354,120]
[320847424,1711624259171,-1518.41523256,0.0005354,120]
[320847425,1711624259184,-1678.17245955,0.0005354,120]
[320847426,1711624259202,-342.85649011,0.0005354,120]
[320847427,1711624259214,-896.05633,0.0005354,120]
[320847428,1711624259227,-323.49709,0.0005354,120]
[320847435,1711624749716,280.2,0.00040709,30]
[320847436,1711624908560,250.0,0.00033,3]
[320847437,1711624909658,300.0,0.00035,3]
[320847440,1711625231484,359.42818938,0.00035,2]
[320847482,1711625432382,-430.03638279,0.00040609,2]
[320847483,1711625432392,-150.44805289,0.00040669,2]
[320847484,1711625432401,-225.22966083,0.00040709,4]
[320847485,1711625432411,-178.69072463,0.00040709,2]
[320847486,1711625432420,-2292.0222671,0.00040709,5]
[320847487,1711625432430,-274.7,0.00049845,2]
[320847488,1711625432439,-321.0,0.0005,15]
[320847489,1711625432449,-152.0,0.00050715,3]
[320847490,1711625432459,-150.0,0.00051322,120]
[320847491,1711625432471,-2665.57669831,0.00051568,2]
[320847492,1711625432492,-606.83330169,0.00051568,2]
[320847493,1711625432502,-198.73,0.00051581,120]
[320847494,1711625432515,-997.43,0.00051604,120]
[320847495,1711625432524,-363.73,0.00051639,2]
[320847496,1711625432533,-150.0,0.00051684,2]
[320847497,1711625432542,-499.99,0.00051684,2]
[320847498,1711625432554,-250.0,0.00051719,120]
[320847499,1711625432565,-250.0,0.00051813,120]
[320847500,1711625432576,-875.6431027,0.00051826,2]
[320847501,1711625432590,-18336.4068973,0.00051826,2]
[320847502,1711625432600,-250.0,0.00051827,112]
[320847503,1711625432609,-1000.0,0.00051873,120]
[320847504,1711625432618,-1362.85766619,0.00051938,4]
[320847506,1711625432627,-591.79559753,0.00051938,4]
[320847508,1711625432636,-283.07,0.00052,120]
[320847509,1711625432645,-274.7,0.00052109,2]
[320847511,1711625432654,-153.36,0.00052214,2]
[320847514,1711625432664,-153.36,0.00052409,2]
[320847518,1711625432673,-5677.0,0.00052437,120]
[320847519,1711625432682,-1380.0,0.00052437,120]
[320847521,1711625432692,-8944.152,0.00052437,120]
[320847523,1711625432701,-4769.0,0.00052437,120]
[320847525,1711625432710,-1081.20861327,0.00052469,5]
[320847526,1711625432719,-153.36,0.00052603,2]
[320847527,1711625432728,-155.0,0.00052617,4]
[320847528,1711625432738,-157.1970755,0.00052639,60]
[320847529,1711625432747,-153.36,0.00052798,2]
[320847530,1711625432757,-6187.9985,0.0005285,2]
[320847531,1711625432766,-517.9,0.00052877,30]
[320847532,1711625432776,-415.83,0.00052877,30]
[320847533,1711625432785,-219.11,0.00052877,30]
[320847534,1711625432794,-161.19,0.00052877,30]
[320847535,1711625432803,-517.9,0.00052877,30]
[320847536,1711625432813,-415.83,0.00052877,30]
[320847537,1711625432822,-415.83,0.00052877,30]
[320847538,1711625432831,-517.9,0.00052877,30]
[320847539,1711625432840,-415.83,0.00052877,30]
[320847540,1711625432849,-415.83,0.00052877,30]
[320847541,1711625432859,-421.06,0.00052877,30]
[320847542,1711625432868,-274.0,0.0005295,2]
[320847543,1711625432877,-3295.39633775,0.0005296,30]
[320847544,1711625432886,-153.36,0.00052992,2]
[320847545,1711625432897,-2107.93613744,0.00052999,4]
[320847546,1711625432907,-300.0,0.00053,120]
[320847547,1711625432917,-50000.0,0.00053,60]
[320847548,1711625432928,-206.52613614,0.00053,90]
[320847549,1711625432937,-332.24232821,0.00053,4]
[320847550,1711625432946,-163.87431336,0.0005305,14]
[320847551,1711625432956,-297.41492256,0.0005305,2]
[320847552,1711625432965,-2500.0,0.0005305,2]
[320847553,1711625432974,-637.2944,0.0005305,2]
[320847554,1711625432985,-1000.0,0.00053149,120]
[320847555,1711625432995,-685.66989825,0.00053149,2]
[320847556,1711625433004,-502.12841415,0.0005315,120]
[320847557,1711625433014,-500.0,0.0005315,120]
[320847558,1711625433024,-500.0,0.0005315,120]
[320847559,1711625433034,-894.12,0.0005315,2]
[320847560,1711625433043,-500.0,0.0005315,120]
[320847561,1711625433053,-500.0,0.0005315,120]
[320847562,1711625433062,-500.0,0.0005315,120]
[320847563,1711625433072,-500.0,0.0005315,120]
[320847564,1711625433081,-500.0,0.0005315,120]
[320847565,1711625433091,-500.0,0.0005315,120]
[320847566,1711625433100,-500.0,0.0005315,120]
[320847567,1711625433110,-308.09188768,0.0005315,120]
[320847568,1711625433119,-494.54637012,0.0005315,120]
[320847569,1711625433129,-500.0,0.0005315,120]
[320847570,1711625433139,-500.0,0.0005315,120]
[320847571,1711625433149,-620.62479698,0.0005315,120]
[320847572,1711625433158,-585.24518568,0.0005315,120]
[320847573,1711625433168,-453.99869058,0.0005315,120]
[320847574,1711625433177,-999.78,0.0005315,120]
[320847575,1711625433186,-500.0,0.0005315,60]
[320847576,1711625433197,-881.22,0.0005315,120]
[320847577,1711625433206,-500.0,0.0005315,120]
[320847578,1711625433216,-1011.45,0.0005315,120]
[320847579,1711625433227,-500.0,0.0005315,120]
[320847580,1711625433237,-500.0,0.0005315,120]
[320847581,1711625433248,-521.18,0.0005315,120]
[320847582,1711625433257,-500.0,0.0005315,120]
[320847583,1711625433267,-633.66006332,0.0005315,120]
[320847584,1711625433276,-500.0,0.0005315,120]
[320847585,1711625433286,-500.0,0.0005315,120]
[320847586,1711625433296,-244.08791273,0.0005315,120]
[320847587,1711625433305,-500.0,0.0005315,120]
[320847588,1711625433315,-935.92,0.0005315,120]
[320847589,1711625433325,-500.0,0.0005315,120]
[320847590,1711625433336,-584.71928795,0.0005315,120]
[320847591,1711625433345,-500.0,0.0005315,120]
[320847592,1711625433354,-509.82,0.0005315,120]
[320847593,1711625433364,-500.0,0.0005315,120]
[320847594,1711625433373,-981.37,0.0005315,120]
[320847595,1711625433382,-587.95,0.0005315,120]
[320847596,1711625433392,-500.0,0.0005315,120]
[320847597,1711625433401,-500.0,0.0005315,120]
[320847598,1711625433411,-1033.3,0.0005315,120]
[320847599,1711625433421,-500.0,0.0005315,120]
[320847600,1711625433430,-500.0,0.0005315,120]
[320847601,1711625433440,-500.0,0.0005315,120]
[320847602,1711625433449,-500.0,0.0005315,120]
[320847603,1711625433460,-500.0,0.0005315,120]
[320847604,1711625433470,-683.48,0.0005315,120]
[320847605,1711625433482,-578.2,0.0005315,120]
[320847606,1711625433491,-500.0,0.0005315,120]
[320847607,1711625433503,-500.0,0.0005315,120]
[320847608,1711625433512,-500.0,0.0005315,120]
[320847609,1711625433522,-536.62961916,0.0005315,120]
[320847610,1711625433532,-500.0,0.0005315,120]
[320847611,1711625433541,-631.25,0.0005315,120]
[320847612,1711625433551,-555.03,0.0005315,120]
[320847613,1711625433562,-500.0,0.0005315,120]
[320847614,1711625433571,-500.0,0.0005315,120]
[320847615,1711625433581,-500.0,0.0005315,120]
[320847616,1711625433591,-500.0,0.0005315,120]
[320847617,1711625433602,-500.0,0.0005315,120]
[320847618,1711625433612,-500.0,0.0005315,120]
[320847619,1711625433621,-500.0,0.0005315,120]
[320847620,1711625433630,-955.12,0.0005315,120]
[320847621,1711625433640,-500.0,0.0005315,120]
[320847622,1711625433649,-500.0,0.0005315,120]
[320847623,1711625433659,-500.0,0.0005315,120]
[320847624,1711625433669,-653.47,0.0005315,120]
[320847625,1711625433678,-984.97,0.0005315,120]
[320847626,1711625433687,-500.0,0.0005315,120]
[320847627,1711625433697,-664.59,0.0005315,120]
[320847628,1711625433707,-1399.09,0.0005315,120]
[320847629,1711625433717,-500.0,0.0005315,120]
[320847630,1711625433728,-159.51702224,0.0005315,7]
[320847631,1711625433737,-808.0,0.0005315,120]
[320847632,1711625433745,-1116.79,0.0005315,120]
[320847633,1711625433755,-500.0,0.0005315,120]
[320847634,1711625433765,-500.0,0.0005315,120]
[320847635,1711625433774,-500.0,0.0005315,120]
[320847636,1711625433784,-500.0,0.0005315,120]
[320847637,1711625433793,-500.0,0.0005315,120]
[320847638,1711625433802,-500.0,0.0005315,120]
[320847639,1711625433811,-500.0,0.0005315,120]
[320847640,1711625433820,-500.0,0.0005315,120]
[320847641,1711625433830,-752.3,0.0005315,120]
[320847642,1711625433840,-783.33,0.0005315,120]
[320847643,1711625433848,-500.0,0.0005315,120]
[320847644,1711625433858,-910.01,0.0005315,120]
[320847645,1711625433867,-542.81,0.0005315,120]
[320847646,1711625433877,-1866.69,0.0005315,120]
[320847647,1711625433886,-500.0,0.0005315,120]
[320847648,1711625433895,-500.0,0.0005315,120]
[320847649,1711625433904,-1525.14,0.0005315,120]
[320847650,1711625433913,-579.22,0.0005315,120]
[320847651,1711625433922,-600.81,0.0005315,120]
[320847652,1711625433933,-743.53,0.0005315,120]
[320847653,1711625433943,-500.0,0.0005315,120]
[320847654,1711625433952,-500.0,0.0005315,120]
[320847655,1711625433961,-500.0,0.0005315,120]
[320847656,1711625433972,-500.0,0.0005315,120]
[320847657,1711625433981,-500.0,0.0005315,120]
[320847658,1711625433990,-785.4,0.0005315,120]
[320847659,1711625433999,-662.0,0.0005315,120]
[320847660,1711625434008,-546.92,0.0005315,120]
[320847661,1711625434018,-500.0,0.0005315,120]
[320847662,1711625434027,-717.26,0.0005315,120]
[320847663,1711625434036,-500.0,0.0005315,120]
[320847664,1711625434045,-2176.19,0.0005315,120]
[320847665,1711625434055,-1044.25,0.0005315,120]
[320847666,1711625434065,-500.0,0.0005315,2]
[320847667,1711625434074,-800.25,0.0005315,120]
[320847668,1711625434083,-757.79,0.0005315,120]
[320847669,1711625434092,-1184.91,0.0005315,120]
[320847670,1711625434102,-500.0,0.0005315,120]
[320847671,1711625434111,-929.42,0.0005315,120]
[320847672,1711625434121,-1138.27,0.0005315,120]
[320847673,1711625434130,-1068.09,0.0005315,120]
[320847674,1711625434140,-891.2,0.0005315,120]
[320847675,1711625434150,-500.0,0.0005315,120]
[320847676,1711625434159,-500.0,0.0005315,120]
[320847677,1711625434169,-648.92,0.0005315,120]
[320847678,1711625434178,-552.0,0.00053151,120]
[320847679,1711625434187,-562.0,0.00053151,120]
[320847680,1711625434197,-153.36,0.00053186,2]
[320847681,1711625434206,-200.15597255,0.00053323,25]
[320847682,1711625434216,-174.46365172,0.0005334,2]
[320847683,1711625434226,-153.36,0.00053381,2]
[320847684,1711625434235,-151.43,0.00053414,120]
[320847685,1711625434245,-206.0,0.00053422,2]
[320847686,1711625434255,-580.89,0.00053422,120]
[320847687,1711625434265,-934.51,0.00053422,120]
[320847688,1711625434274,-776.33932911,0.00053423,2]
[320847689,1711625434284,-658.44,0.00053423,120]
[320847690,1711625434294,-500.0,0.00053423,120]
[320847691,1711625434303,-574.8,0.00053423,120]
[320847692,1711625434312,-511.73,0.00053423,120]
[320847693,1711625434321,-500.0,0.00053423,120]
[320847694,1711625434332,-743.65,0.00053423,120]
[320847695,1711625434342,-1196.15,0.00053423,120]
[320847696,1711625434351,-500.0,0.00053423,120]
[320847697,1711625434360,-956.94,0.00053423,120]
[320847698,1711625434370,-500.0,0.00053423,120]
[320847699,1711625434379,-500.0,0.00053423,120]
[320847700,1711625434388,-500.0,0.00053423,120]
[320847701,1711625434398,-500.0,0.00053423,120]
[320847702,1711625434408,-718.78,0.00053423,120]
[320847703,1711625434417,-500.0,0.00053423,120]
[320847704,1711625434426,-671.84,0.00053423,120]
[320847705,1711625434435,-672.16,0.00053423,120]
[320847706,1711625434445,-541.54,0.00053423,120]
[320847707,1711625434455,-500.0,0.00053423,120]
[320847708,1711625434469,-500.0,0.00053423,120]
[320847709,1711625434479,-519.28,0.00053423,120]
[320847710,1711625434490,-730.12,0.00053423,120]
[320847711,1711625434503,-500.0,0.00053423,120]
[320847712,1711625434515,-500.0,0.00053423,120]
[320847713,1711625434524,-500.0,0.00053423,120]
[320847714,1711625434534,-500.0,0.00053423,2]
[320847715,1711625434548,-1030.42,0.00053423,120]
[320847716,1711625434561,-500.0,0.00053423,120]
[320847717,1711625434570,-551.97,0.00053423,120]
[320847718,1711625434579,-635.26,0.00053423,120]
[320847719,1711625434590,-720.27,0.00053423,120]
[320847720,1711625434600,-500.0,0.00053423,120]
[320847721,1711625434609,-1076.91,0.00053423,120]
[320847722,1711625434619,-513.36,0.00053423,30]
[320847723,1711625434628,-543.05,0.00053423,120]
[320847724,1711625434638,-500.0,0.00053423,120]
[320847725,1711625434647,-500.0,0.00053423,120]
[320847726,1711625434656,-500.0,0.00053423,120]
[320847727,1711625434666,-500.0,0.00053423,120]
[320847728,1711625434675,-1578.78,0.00053423,120]
[320847729,1711625434686,-569.84,0.00053423,120]
[320847730,1711625434695,-500.0,0.00053423,120]
[320847731,1711625434704,-500.0,0.00053423,120]
[320847732,1711625434714,-718.94,0.00053423,120]
[320847733,1711625434723,-785.61,0.00053423,120]
[320847734,1711625434732,-500.0,0.00053423,120]
[320847735,1711625434742,-500.0,0.00053423,120]
[320847736,1711625434751,-500.0,0.00053423,120]
[320847737,1711625434760,-498.50664126,0.00053423,120]
[320847738,1711625434769,-1117.93,0.00053423,120]
[320847739,1711625434779,-762.16,0.00053423,120]
[320847740,1711625434789,-500.0,0.00053423,120]
[320847741,1711625434798,-818.18,0.00053423,120]
[320847742,1711625434808,-518.93,0.00053423,120]
[320847743,1711625434818,-500.0,0.00053423,120]
[320847744,1711625434827,-500.0,0.00053423,120]
[320847745,1711625434837,-558.05,0.00053423,120]
[320847746,1711625434846,-628.67,0.00053423,120]
[320847747,1711625434856,-651.03,0.00053423,120]
[320847748,1711625434865,-532.77259356,0.00053423,4]
[320847749,1711625434874,-484.82121413,0.00053423,120]
[320847750,1711625434885,-1044.6,0.00053423,120]
[320847751,1711625434894,-748.14,0.00053423,120]
[320847752,1711625434903,-1649.26,0.00053423,120]
[320847753,1711625434913,-1233.84,0.00053423,120]
[320847754,1711625434922,-500.0,0.00053423,120]
[320847755,1711625434932,-1666.85,0.00053423,120]
[320847756,1711625434941,-4278.9,0.00053423,120]
[320847757,1711625434950,-500.0,0.00053423,120]
[320847758,1711625434960,-903.5,0.00053423,120]
[320847759,1711625434970,-1490.8,0.00053423,120]
[320847760,1711625434980,-2238.06,0.00053423,120]
[320847761,1711625434990,-901.89,0.00053423,120]
[320847762,1711625434999,-1134.82,0.00053423,120]
[320847763,1711625435008,-3089.21,0.00053423,120]
[320847764,1711625435018,-1862.52,0.00053423,120]
[320847765,1711625435027,-1614.02,0.00053423,120]
[320847766,1711625435038,-541.12,0.00053423,120]
[320847767,1711625435048,-988.86,0.00053423,120]
[320847768,1711625435058,-827.24,0.00053423,120]
[320847769,1711625435068,-2263.29,0.00053423,120]
[320847770,1711625435077,-1503.91,0.00053423,120]
[320847771,1711625435089,-1193.3,0.00053423,120]
[320847772,1711625435099,-500.0,0.00053423,120]
[320847773,1711625435109,-777.66,0.00053423,120]
[320847774,1711625435119,-1007.41,0.00053423,120]
[320847775,1711625435128,-1712.72,0.00053423,120]
[320847776,1711625435138,-500.0,0.00053423,120]
[320847777,1711625435147,-1607.43,0.00053423,120]
[320847778,1711625435157,-11437.5,0.00053423,120]
[320847779,1711625435167,-869.65,0.00053423,120]
[320847780,1711625435177,-500.0,0.00053423,120]
[320847781,1711625435186,-902.33,0.00053423,120]
[320847782,1711625435197,-672.68,0.00053423,120]
[320847783,1711625435207,-1468.39,0.00053423,120]
[320847784,1711625435217,-9946.52,0.00053423,120]
[320847785,1711625435227,-2123.96,0.00053423,120]
[320847786,1711625435237,-2251.74,0.00053423,120]
[320847787,1711625435246,-1118.38,0.00053423,120]
[320847788,1711625435256,-500.0,0.00053423,120]
[320847789,1711625435265,-1196.02,0.00053423,120]
[320847790,1711625435276,-825.48,0.00053423,120]
[320847791,1711625435286,-2304.26,0.00053423,120]
[320847792,1711625435295,-1569.92,0.00053423,120]
[320847793,1711625435304,-1007.86,0.00053423,120]
[320847794,1711625435314,-849.21,0.00053423,120]
[320847795,1711625435324,-2625.98,0.00053423,120]
[320847796,1711625435334,-500.0,0.00053423,120]
[320847797,1711625435344,-677.71,0.00053423,120]
[320847798,1711625435354,-1481.47,0.00053423,120]
[320847799,1711625435363,-2646.42,0.00053423,120]
[320847800,1711625435373,-1626.22,0.00053423,120]
[320847801,1711625435382,-500.0,0.00053423,7]
[320847802,1711625435391,-978.24,0.00053423,120]
[320847803,1711625435400,-595.22,0.00053423,120]
[320847804,1711625435409,-1802.37,0.00053423,120]
[320847805,1711625435419,-517.31,0.00053423,120]
[320847806,1711625435428,-500.0,0.00053423,120]
[320847807,1711625435438,-1152.93,0.00053423,120]
[320847808,1711625435449,-946.38,0.00053423,120]
[320847809,1711625435458,-500.0,0.00053423,120]
[320847810,1711625435469,-1306.27,0.00053423,120]
[320847811,1711625435482,-1097.6,0.00053423,120]
[320847812,1711625435491,-622.89,0.00053423,120]
[320847813,1711625435501,-12240.12,0.00053423,120]
[320847814,1711625435511,-500.0,0.00053423,120]
[320847815,1711625435521,-1697.63,0.00053423,120]
[320847816,1711625435531,-583.39,0.00053423,120]
[320847817,1711625435541,-1669.04,0.00053423,120]
[320847818,1711625435551,-1963.92,0.00053423,120]
[320847819,1711625435561,-604.17,0.00053423,120]
[320847820,1711625435571,-3888.26,0.00053423,120]
[320847821,1711625435582,-1224.61,0.00053423,120]
[320847822,1711625435591,-587.18,0.00053423,120]
[320847823,1711625435600,-1400.59,0.00053423,120]
[320847824,1711625435609,-771.04,0.00053423,120]
[320847825,1711625435619,-2533.74,0.00053423,120]
[320847826,1711625435628,-749.99,0.00053423,120]
[320847827,1711625435638,-515.54,0.00053423,120]
[320847828,1711625435647,-687.94,0.00053423,120]
[320847829,1711625435656,-1153.31,0.00053423,120]
[320847830,1711625435666,-1592.33,0.00053423,120]
[320847831,1711625435676,-1877.76,0.00053423,120]
[320847832,1711625435685,-500.0,0.00053423,120]
[320847833,1711625435695,-500.0,0.00053423,120]
[320847834,1711625435705,-925.8,0.00053423,120]
[320847835,1711625435715,-1652.35,0.00053423,120]
[320847836,1711625435724,-2069.82,0.00053423,120]
[320847837,1711625435734,-500.0,0.00053423,120]
[320847838,1711625435744,-500.0,0.00053423,120]
[320847839,1711625435754,-632.88,0.00053423,21]
[320847840,1711625435763,-500.0,0.00053423,120]
[320847841,1711625435773,-500.0,0.00053423,120]
[320847842,1711625435783,-779.09,0.00053423,120]
[320847843,1711625435793,-461.51,0.00053423,120]